{"text_format":"1","workbook":"xlsx","n_sheets":3,"sheets":["Unternehmen","Fixko Erstmalig","Fixko Verlängerung"],"not_rendered":{"charts":0,"images":38,"macros":1,"external_links":0,"defined_names":4,"comments":2,"pivot_tables":0},"unopened":[],"bounds":{"document_bytes":16777216,"sheet_cells":100000,"rows_first":2000,"rows_last":500,"rows_between":2000,"halvings":0,"cell_chars":16384,"cell_head_chars":4096},"cells_cut":0,"cells_raw":0,"read":"whole","date_system":"1900"}

{"sheet":"Unternehmen","index":0,"n_rows":115,"n_cols":6,"rows_kept":115,"cut":false,"hidden":false,"merged":[[100,2,101,5],[95,2,95,3],[96,2,96,3],[97,2,97,3],[98,2,98,3],[99,1,99,5],[32,2,32,3],[29,1,29,2],[36,1,36,4],[37,1,37,4],[48,1,48,4],[45,1,45,5],[41,1,41,4],[42,1,42,4],[43,1,43,4],[0,0,0,4],[70,2,70,5],[71,2,71,5],[72,2,72,5],[2,1,2,2],[16,2,16,5],[8,2,8,5],[38,1,38,4],[39,1,39,4],[40,1,40,4],[55,1,55,3],[25,2,25,5],[26,2,26,5],[68,2,68,5],[62,1,62,5],[69,2,69,5],[14,4,14,5],[6,2,6,5],[7,2,7,5],[30,2,30,3],[31,2,31,3],[15,4,15,5],[9,2,9,5],[10,2,10,5],[11,2,11,5],[12,2,12,5],[13,4,13,5],[20,2,20,5],[21,2,21,5],[22,2,22,5],[23,2,23,5],[24,2,24,5],[49,1,49,4],[83,3,83,5],[81,4,81,5],[80,4,80,5],[56,1,56,2],[64,1,64,5],[74,2,74,5],[57,3,58,5],[63,1,63,5],[51,1,51,4],[73,2,73,5],[109,1,109,5],[115,4,115,5],[115,1,115,2],[79,4,79,5],[107,1,107,5],[94,1,94,5],[87,1,87,5],[105,1,105,5],[111,1,111,5],[88,1,88,5],[89,1,89,5],[90,2,90,3],[91,2,91,3],[92,2,92,3],[93,1,93,3],[103,1,103,5]]}
["Gesuch für Härtefallmassnahmen nach HF VO 2020 Verlängerung"]
[]
[null,"Diese Zellen können ausgefüllt werden"]
[]
[]
[null,"Unternehmensdaten"]
[null,"Firmenname"]
[null,"Unternehmensidentifikationsnummer (UID)"]
[null,"Rechtsform der Unternehmung"]
[null,"Branchenzugehörigkeit"]
[null,"Angebot/Produkte/Dienstleistung"]
[null,"Webseite des Unternehmens"]
[null,"Gründungsdatum"]
[null,"Sind Filialen/Zweigniederlassungen in anderen Kantonen vorhanden?",null,"Wenn ja, wo?"]
[null,null,null,"wenn ja, welchen Umsatzanteil generieren diese?"]
[null,"Ist das Unternehmen Teil einer Gruppengesellschaft mit Firmen im Ausland?"]
[null,"Anzahl Beschäftigte in AR"]
[]
[]
[null,"Kontaktdaten Antragsteller"]
[null,"Name"]
[null,"Vorname"]
[null,"Firmenadresse (Strasse, Nr.)"]
[null,"Plz, Ort"]
[null,"E-Mail"]
[null,"Telefonnummer Geschäft"]
[null,"Telefonnummer Mobile"]
[]
[]
[null,"Anteilseigner (Gesellschafter mit Anteil > 30 %)"]
[null,"Gesellschafter 1 (Vorname & Name)",null,null,"Anteil in %"]
[null,"Gesellschafter 2 (Vorname & Name)",null,null,"Anteil in %"]
[null,"Gesellschafter 3 (Vorname & Name)",null,null,"Anteil in %"]
[]
[]
[null,"Wir bestätigen 1"]
[null,"Das Unternehmen ist vor dem 1. Oktober 2020 gegründet worden.*"]
[null,"Das Unternehmen hat seinen Sitz per 1. Oktober 2020 im Kanton, übt eine operative Geschäftstätigkeit mit Geschäftsräumlichkeiten im Kanton aus und beschäftigt eigenes Personal im Kanton.*"]
[null,"Das Unternehmen hat keinen Anspruch auf andere Covid-Finanzhilfen des Bundes und des Kantons in den Bereichen Kultur, Sport, öffentlicher Verkehr oder Medien; davon ausgenommen sind Unternehmen, deren Tätigkeitsbereiche mittels Spartenrechnung klar abgegrenzt werden können.*"]
[null,"Das Unternehmen befindet sich am 15. März 2020 nicht in einem Betreibungsverfahren für steuerrechtliche Forderungen oder für Sozialversicherungsbeiträge, es sei denn, dass zum Zeitpunkt der Einreichung des Gesuchs eine vereinbarte Zahlungsplanung vorliegt oder das Verfahren durch Zahlung abgeschlossen ist.*"]
[null,"Zum Zeitpunkt der Einreichung dieses Antrags befindet sich das Unternehmen nicht einem Konkursverfahren oder in Liquidation.*"]
[null,"Das Unternehmen hat die Massnahmen ergriffen, die zum Schutz seiner Liquidität und seiner Kapitalbasis nötig sind.*"]
[null,"Das Unternehmen bestätigt gegenüber dem Kanton, dass es während drei Jahren oder bis zur Rückzahlung der erhaltenen Hilfen keine Dividenden oder Tantiemen beschliesst oder ausschüttet oder Kapitaleinlagen rückerstattet und keine Darlehen an seine Eigentümer vergibt.*"]
[null,"Das Unternehmen bestätigt, dass alle Angaben zum Umsatzerlös auf dem Einzelabschluss basieren (keine Konzernrechnung).*"]
[]
[null,"*Wenn diese Fragen nicht mit JA beantwortet werden können, besteht kein Anspruch auf Härtefallentschädigung"]
[]
[]
[null,"Bereits früher Gesuche für Härtefallentschädigung eingereicht 1"]
[null,"Das Unternehmen hat bereits Gesuche um Härtefallgelder eingereicht und diesbezüglich eine oder mehrere Verfügungen erhalten."]
[]
[null,"1Muss zwingend ausgefüllt werden, da ansonsten keine Berechnung möglich!"]
[]
[]
[null,"Grund für aktuelle Schwierigkeiten"]
[null,"Eigenes Geschäft durch Behörden zeitweise geschlossen",null,null,"Zeitraum"]
[null,"Geschäft von Kunden/Lieferanten durch Behörden zeitweise geschlossen",null,null,"Zeitraum"]
[null,"Anderer Grund"]
[]
[]
[]
[null,"Grund für Härtefall"]
[null,"Betrieb musste behördlich zwischen dem 1. November 2020 und dem 31. März 2021 für mindestens 40 Tage geschlossen sein. "]
[null,"Umsatzeinbruch von > 40 % in den Geschäftsjahren 2020 und 2021 gegenüber 2019"]
[null,"Umsatzeinbruch von > 40 % in einer frei gewählten Zeitspanne innerhalb von 12 Monaten zwischen März 2020 bis Dezember 2021"]
[]
[]
[null,"Bankverbindung für Auszahlung"]
[null,"Bankname"]
[null,"Plz, Ort"]
[null,"Ansprechperson Bank"]
[null,"Telefon Ansprechperson"]
[null,"E-Mail Ansprechperson"]
[null,"Name Konto"]
[null,"IBAN-Nr."]
[]
[]
[null,"Bisherige Massnahmen"]
[null,"Covid-19-Kredit erhalten","Betrag"]
[null,"Kurzarbeitsentschädigung erhalten","Betrag",null,"(Zeitraum Pandemiebeginn bis Dezember 2021)"]
[null,"EO-Entschädigung","Betrag",null,"(Zeitraum Pandemiebeginn bis Dezember 2021)"]
[null,"Zahlung aus Pandemieversicherung","Betrag",null,"(Zeitraum Pandemiebeginn bis Dezember 2021)"]
[null,"Corona-Nothilfe-Fonds","Betrag"]
[null,"Kostenreduktion eingeleitet"]
[]
[]
[null,"Einzureichende Unterlagen**"]
[null,"Aktueller Handelsregisterauszug (wird durch das Amt für Wirtschaft und Arbeit eingeholt; eine Beglaubigung ist nicht notwendig)"]
[null,"Aktueller Betreibungsregisterauszug (wird durch das Amt für Wirtschaft und Arbeit eingeholt; max. 3 Monate)"]
[null,"Detaillierte Bilanz- und Erfolgsrechnung der Jahre 2018, 2019, 2020 und/oder Bericht der Revisionsstelle derselben Jahre"]
[null,"Jahresrechnung 2018 definitiv","bereits eingereicht",null,"beiliegend"]
[null,"Jahresrechnung 2019 definitiv","bereits eingereicht",null,"beiliegend"]
[null,"Jahresrechnung 2020 definitiv","bereits eingereicht",null,"beiliegend"]
[null,"Jahresrechnung2021 (ev. provisorisch) ",null,null,"beiliegend"]
[null,"MwSt.-Abrechnungen der Jahre 2018, 2019, 2020, 2021"]
[null,"MwSt.-Abrechnung 2018","bereits eingereicht",null,"beiliegend"]
[null,"MwSt.-Abrechnung 2019","bereits eingereicht",null,"beiliegend"]
[null,"MwSt.-Abrechnung 2020","bereits eingereicht",null,"beiliegend"]
[null,"MwSt.-Abrechnung 2021","bereits eingereicht",null,"beiliegend","(3. und 4. Quartal zwingend!)"]
[null,"Kreditvereinbarung Covid-19-Kredit (sofern unter \"bisherige Massnahmen\" angekreuzt)"]
[null,"weitere Dokumente",null,null,"Freitext"]
[]
[]
[null,"**Das Amt für Wirtschaft und Arbeit ist ermächtigt, bei Bedarf weitere Unterlagen einzufordern."]
[]
[null,"Die maximale Entschädigung über das Härtefallprogramm 2021 beträgt 20 % (inklusive bereits erhaltener Verfügungen) des durchschnittlichen Jahresumsatzes aus den Jahren 2018 und 2019."]
[]
[null,"Hinweis: Bitte beachten Sie das zusätzliche Arbeitsblatt in dieser Datei, das Sie neben \"Unternehmen\" ausfüllen müssen! "]
[]
[null,"Die Excel-Datei ist für ein fehlerfreies Einreichen zuvor zwingend im Format .xslx abzuspeichern. "]
[]
[null,"Das Gesuch muss zusammen mit den Unterlagen via Online-Formular (www.ar.ch/haertefall) bis spätestens 30. Juni 2022 beim Amt für Wirtschaft und Arbeit eingereicht werden. Postalisch zugestellte Unterlagen werden nicht bearbeitet."]
[]
[]
[null,"Ort, Datum",null,null,"Name/Vorname"]

{"sheet":"Fixko Erstmalig","index":1,"n_rows":80,"n_cols":12,"rows_kept":80,"cut":false,"hidden":true,"merged":[[52,0,52,3],[62,4,62,5],[57,0,57,3],[58,0,58,3],[54,0,54,3],[55,0,55,3],[25,0,25,3],[16,0,16,3],[17,0,17,3],[18,0,18,3],[19,0,19,3],[20,0,20,3],[21,0,21,3],[24,0,24,3],[22,0,22,3],[23,0,23,3],[26,0,26,3],[27,0,27,3],[28,0,28,3],[29,0,29,3],[50,0,50,3],[30,0,30,1],[45,0,45,1],[49,0,49,3],[2,0,2,1],[3,0,3,1],[4,0,4,1],[14,0,14,3],[15,0,15,3],[3,3,3,4],[10,0,10,3],[8,0,8,3],[2,3,2,4],[4,3,4,4],[11,0,11,3],[12,0,12,3],[13,0,13,3],[9,0,9,3],[38,4,38,5],[38,0,38,3],[79,0,79,7],[0,0,0,4],[0,5,0,7],[36,0,36,7],[62,0,62,3],[61,0,61,3],[59,0,59,3],[60,0,60,3],[6,0,6,7],[31,0,31,1],[32,0,32,1],[33,0,33,1],[34,0,34,1],[35,0,35,3]]}
["Gesuch für Härtefallmassnahmen nach HF VO 2021 Verlängerung",null,null,null,null,"HF 20 V Fixkosten E V5.2"]
[]
["Name/Vorname",null,null,{"$f":"Unternehmen!$C$21&\" \"&Unternehmen!$C$22","v":" "}]
["Firmenname",null,null,{"$f":"Unternehmen!$C$7","v":0}]
["betrifft Sparte/Kostenstelle"]
[]
["Berechnungsformular Fixkosten für Antragsteller, die bisher noch keine Gesuche um Härtefallgelder eingereicht haben."]
[]
["in CHF",null,null,null,2018,2019,2020,2021]
["Übriger betrieblicher Aufwand",null,null,null,null,null,null,null,null,"Bestätigungen"]
["Miete (Mieterlasse im 2020/2021 sind in Abzug zu bringen)",null,null,null,0,0,0,0,null,"Umsatz der Jahre 2018/19 > 50'000.-",{"$f":"IF((E46+F46)/2>50000,\"ja\",\"nein\")","v":"nein"}]
["Hypothekarzinsen bei Eigentum",null,null,null,0,0,0,0,null,"Umsatzrückgang 2020 ggü Durchschnitt 2018/19",{"$f":"(($E$46+$F$46)/2)-$G$78","v":0},{"$f":"$G$78/(($E$46+$F$46)/2)-1","v":{"$error":"#DIV/0!"}}]
["Unterhalt Betriebseinrichtungen",null,null,null,0,0,0,0,null,"Durchschnitt Umsatzrückgang 2020/21 ggü Durchschnitt 2018/19",{"$f":"(($E$46+$F$46)/2)-(($G$78+$H$78)/2)","v":0},{"$f":"(($G$46+$H$46)/2)/(($E$46+$F$46)/2)-1","v":{"$error":"#DIV/0!"}}]
["EDV, Lizenzen, Leasing, Unterhalt",null,null,null,0,0,0,0]
["Franchising-Kosten",null,null,null,0,0,0,0]
["Fahrzeugaufwand (Privatanteile sind in Abzug zu bringen)",null,null,null,0,0,0,0]
["Sach-/Haftpflichtversicherungen",null,null,null,0,0,0,0]
["Abgaben, Gebühren, Bewilligungen",null,null,null,0,0,0,0]
["Strom, Wasser, Heizung ",null,null,null,0,0,0,0]
["Reinigung, Entsorgung",null,null,null,0,0,0,0]
["Betriebs- und Hilfsmaterial",null,null,null,0,0,0,0]
["Büromaterial, Drucksachen",null,null,null,0,0,0,0]
["Telefon, Internet",null,null,null,0,0,0,0]
["Porti",null,null,null,0,0,0,0]
["Spenden, Beiträge",null,null,null,0,0,0,0]
["Fachliteratur",null,null,null,0,0,0,0]
["Übriger Verwaltungsaufwand (Privanteile sind in Abzug zu bringen)",null,null,null,0,0,0,0]
["Informatikaufwand",null,null,null,0,0,0,0]
["Werbung",null,null,null,0,0,0,0]
["Finanzaufwand",null,null,null,0,0,0,0]
["Weitere Fixkosten im Aufwand",null,null,"Bsp. Liegenschaftenunterhalt",0,0,0,0]
["Weitere Fixkosten im Aufwand",null,null,null,0,0,0,0]
["Weitere Fixkosten im Aufwand",null,null,null,0,0,0,0]
["Weitere Fixkosten im Aufwand",null,null,null,0,0,0,0]
["Weitere Fixkosten im Aufwand",null,null,null,0,0,0,0]
["TOTAL FIXKOSTEN",null,null,null,{"$f":"SUM(E11:E35)","v":0},{"$f":"SUM(F11:F35)","v":0},{"$f":"SUM(G11:G35)","v":0},{"$f":"SUM(H11:H35)","v":0}]
["** Personalkosten sind keine Fixkosten, die Abgeltung erfolgt über die Kurzarbeitsentschädigung (KAE) und die Erwerbsersatzordnung (EO)."]
[]
["Betrachtungsperiode",null,null,null,"von [MMM.JJ] bis [MMM.JJ]",null,"2020-03-01","2021-12-01"]
[null,null,null,null,null,null,2020,2021]
[null,null,null,null,null,"Anzahl",{"$f":"DATEDIF(G39,DATE(2020,12,31),\"m\")+1","v":10},{"$f":"DATEDIF(DATE(2021,1,1),H39,\"m\")+1","v":12}]
[]
[" ",null,null,null,2018,2019,2020,2021]
["TOTAL FIXKOSTEN",null,null,{"$f":"TEXT(G41+H41,0)&\" Monate \"&\"(2020:\"&\" \"&G41&\", \"&\"2021:\"&\" \"&H41&\")\"","v":"22 Monate (2020: 10, 2021: 12)"},null,null,{"$f":"G36/12*G41","v":0},{"$f":"H36/12*H41","v":0}]
[]
["Umsatz ohne Versicherunsleistungen",null,null,{"$f":"TEXT(G41+H41,0)&\" Monate \"&\"(2020:\"&\" \"&G41&\", \"&\"2021:\"&\" \"&H41&\")\"","v":"22 Monate (2020: 10, 2021: 12)"}]
[]
["Entschädigungen aus Pandemieversicherung, etc."]
[]
["Umsatz inkl. Versicherungsleistungen (Total Umsatz)",null,null,null,null,null,{"$f":"SUM(G46:G48)","v":0},{"$f":"SUM(H46:H48)","v":0}]
["(Fixkostenanteil in % vom Umsatz)",null,null,null,{"$f":"+E36/E46","v":{"$error":"#DIV/0!"}},{"$f":"+F36/F46","v":{"$error":"#DIV/0!"}},{"$f":"+G36/(G46+G48)","v":{"$error":"#DIV/0!"}},{"$f":"+H36/(H46+H48)","v":{"$error":"#DIV/0!"}}]
[]
["Fixkostenanteil gem. %-Durchschnitt der Jahre 2018 und 2019",null,null,null,null,{"$f":"(E51+F51)/2","v":{"$error":"#DIV/0!"}},{"$f":"G50*F53","v":{"$error":"#DIV/0!"}},{"$f":"H50*F53","v":{"$error":"#DIV/0!"}}]
[]
["Differenz zu Fixkosten 2020/2021",null,null,null,null,null,{"$f":"+G44-G53","v":{"$error":"#DIV/0!"}},{"$f":"+H44-H53","v":{"$error":"#DIV/0!"}}]
[]
[null,null,null,null,null,null,2020,2021]
["Entschädigungen aus Kurzarbeit und Erwerbsersatz"]
["4.5 % Beteiligung an ungedeckten Sozialversicherungskosten",null,null,null,null,null,{"$f":"G58*0.045","v":0},{"$f":"H58*0.045","v":0}]
[]
["TOTAL UNGEDECKTE FIXKOSTEN",null,null,null,null,null,{"$f":"SUM(G55+G59)","v":{"$error":"#DIV/0!"}},{"$f":"SUM(H55+H59)","v":{"$error":"#DIV/0!"}}]
[]
["Antrag auf ungedeckte Fixkosten",null,null,null,"Maximalbetrag",null,{"$f":"(E46+F46)/2*0.2","v":0},{"$f":"IF((G61+H61)<G63,(G61+H61),G63)","v":{"$error":"#DIV/0!"}}]
[]
[null,null,null,"Deklaration Monatsumsätze",null,null,2020,2021]
[null,null,null,"Nettoumsatz exkl. MWSt","Januar"]
[null,null,null,null,"Februar"]
[null,null,null,null,"März"]
[null,null,null,null,"April"]
[null,null,null,null,"Mai"]
[null,null,null,null,"Juni"]
[null,null,null,null,"Juli"]
[null,null,null,null,"August"]
[null,null,null,null,"September"]
[null,null,null,null,"Oktober"]
[null,null,null,null,"November"]
[null,null,null,null,"Dezember"]
[null,null,null,null,"TOTAL",null,{"$f":"SUM(G66:G77)","v":0},{"$f":"SUM(H66:H77)","v":0}]
[]
["Die maximale Entschädigung über das Härtefallprogramm 2020 Verlängerung beträgt 20 % (inklusive bereits erhaltener Verfügungen) des durchschnittlichen Jahresumsatzes aus den Jahren 2018 und 2019."]

{"sheet":"Fixko Verlängerung","index":2,"n_rows":67,"n_cols":9,"rows_kept":67,"cut":false,"hidden":true,"merged":[[23,0,23,1],[24,0,24,1],[52,4,52,5],[51,4,51,6],[26,0,26,4],[25,0,25,4],[22,0,22,1],[48,0,48,7],[49,0,49,7],[27,0,27,1],[46,0,46,3],[46,4,46,5],[28,0,28,4],[27,3,27,4],[37,0,37,4],[43,0,43,4],[39,0,39,4],[40,0,40,4],[16,0,16,4],[21,3,21,4],[66,0,66,8],[44,0,44,3],[29,0,29,4],[30,0,30,4],[31,0,31,4],[32,0,32,4],[33,0,33,4],[34,0,34,4],[35,0,35,4],[36,0,36,4],[38,0,38,3],[41,0,41,3],[42,0,42,3],[65,0,65,4],[22,3,22,4],[23,3,23,4],[24,3,24,4],[12,0,12,3],[8,0,8,8],[11,7,11,8],[12,5,12,6],[13,0,13,1],[18,0,18,1],[21,0,21,1],[18,3,18,4],[19,0,19,4],[17,0,17,4],[20,0,20,4],[15,0,15,4],[14,0,14,4],[0,0,0,4],[0,5,0,8],[5,3,5,4],[10,0,10,3],[11,0,11,3],[2,6,2,8],[3,0,3,1],[4,0,4,1],[5,0,5,1],[10,7,10,8]]}
["Gesuch für Härtefallmassnahmen nach HF VO 2021 Verlängerung",null,null,null,null,"HF 20 V Fixkosten W V5.2"]
[]
[null,null,null,null,null,null,"Betrachtungs-Periode"]
["Name/Vorname",null,null,{"$f":"Unternehmen!$C$21&\" \"&Unternehmen!$C$22","v":" "},null,null,null,"von Monat","bis  Monat"]
["Firmenname",null,null,{"$f":"Unternehmen!$C$7","v":0},null,null,null,"2020-03-01","2021-12-01"]
["betrifft Sparte/Kostenstelle",null,null,null,null,null,null,2020,2021]
[null,null,null,null,null,null,"Anzahl",{"$f":"DATEDIF(H5,DATE(2020,12,31),\"m\")+1","v":10},{"$f":"DATEDIF(DATE(2021,1,1),I5,\"m\")+1","v":12}]
[]
["Berechnungsformular Fixkosten für Antragsteller, die bereits Gesuche um Härtefallgelder eingereicht und rechtskräftige Verfügungen erhalten haben."]
[]
["letzte Verfügung vom",null,null,null,null,null,"[TT.MM.JJ]"]
["erhaltener Betrag aus Verfügungen",null,null,null,null,null,"[CHF]"]
["bisherige Abrechnungsperiode in Verfügungen",null,null,null,null,"von [MMM.JJ] bis [MMM.JJ]"]
[]
["in CHF",null,null,null,null,2018,2019,2020,2021]
["TOTAL FIXKOSTEN (Fixkosten 2020 und 2021 werden berücksichtigt)"]
["2018 und 2019 muss mit Verfügungen übereinstimmen"]
[]
["TOTAL FIXKOSTEN NEUE PERIODE",null,null,{"$f":"TEXT(H7+I7,0)&\" Monate \"&\"(2020:\"&\" \"&H7&\", \"&\"2021:\"&\" \"&I7&\")\"","v":"22 Monate (2020: 10, 2021: 12)"},null,null,null,{"$f":"(H16)/12*H7","v":0},{"$f":"(I16)/12*I7","v":0}]
[]
["Korrektur Fixkosten in neuer Betrachtungs-Periode (siehe oben)"]
["Weitere Fixkosten Minderaufwand",null,null,"weitere Mietzinsreduktionen "]
["Weitere Fixkosten Minderaufwand"]
["Weitere Fixkosten Mehraufwand"]
["Weitere Fixkosten Mehraufwand"]
["TOTAL FIXKOSTEN NEUE PERIODE",null,null,null,null,{"$f":"SUM(F16:F25)","v":0},{"$f":"SUM(G16:G25)","v":0},{"$f":"SUM(H19:H25)","v":0},{"$f":"SUM(I19:I25)","v":0}]
[]
["Umsatz ohne Versicherungsleistungen",null,null,{"$f":"TEXT(H7+I7,0)&\" Monate \"&\"(2020:\"&\" \"&H7&\", \"&\"2021:\"&\" \"&I7&\")\"","v":"22 Monate (2020: 10, 2021: 12)"}]
["2018 und 2019 muss mit Verfügungen übereinstimmen"]
[]
["Entschädigungen aus Pandemieversicherung, etc. in oben erw. Periode "]
[]
["Umsatz inkl. Versicherungsleistungen (Total Umsatz)",null,null,null,null,null,null,{"$f":"SUM(H28,H31)","v":0},{"$f":"SUM(I28,I31)","v":0}]
[]
["(Fixkostenanteil in % vom Umsatz)",null,null,null,null,{"$f":"+F26/F28","v":{"$error":"#DIV/0!"}},{"$f":"+G26/G28","v":{"$error":"#DIV/0!"}},{"$f":"+H26/H33","v":{"$error":"#DIV/0!"}},{"$f":"+I26/I33","v":{"$error":"#DIV/0!"}}]
[]
["Fixkostenanteil gem. %-Durchschnitt der Jahre 2018 und 2019",null,null,null,null,null,{"$f":"(F35+G35)/2","v":{"$error":"#DIV/0!"}},{"$f":"+H33*(F35+G35)/2","v":{"$error":"#DIV/0!"}},{"$f":"+I33*(F35+G35)/2","v":{"$error":"#DIV/0!"}}]
[]
["Differenz zu Fixkosten 2020* oder \"alter\" Periode",null,null,null,null,null,null,{"$f":"+H26-H37","v":{"$error":"#DIV/0!"}},{"$f":"+I26-I37","v":{"$error":"#DIV/0!"}}]
[]
[null,null,null,null,null,null,null,2020,2021]
["Entschädigungen aus Kurzarbeit und/oder Erwerbsersatz"]
["4.5 % Beteiligung an ungedeckten Sozialversicherungskosten",null,null,null,null,null,null,{"$f":"H42*0.045","v":0},{"$f":"I42*0.045","v":0}]
[]
["TOTAL UNGEDECKTE FIXKOSTEN",null,null,null,null,null,null,{"$f":"SUM(H39,H43)","v":{"$error":"#DIV/0!"}},{"$f":"SUM(I39+I43)","v":{"$error":"#DIV/0!"}}]
[]
["Antrag auf ungedeckte Fixkosten",null,null,null,"Maximalbetrag",null,{"$f":"(F28+G28)/2*0.2","v":0},null,{"$f":"+IF(H45+I45<G47,H45+I45,G47)","v":{"$error":"#DIV/0!"}}]
[]
["Erhaltener Betrag aus früheren Verfügungen",null,null,null,null,null,null,null,{"$f":"-H12","v":0}]
["Auszahlungsbetrag gemäss neuer Periode",null,null,null,null,null,null,null,{"$f":"+I47+I49","v":{"$error":"#DIV/0!"}}]
[]
[null,null,null,null,"Deklaration Monatsumsätze",null,null,2020,2021]
[null,null,null,null,"Nettoumsatz exkl. MWSt",null,"Januar"]
[null,null,null,null,null,null,"Februar"]
[null,null,null,null,null,null,"März"]
[null,null,null,null,null,null,"April"]
[null,null,null,null,null,null,"Mai"]
[null,null,null,null,null,null,"Juni"]
[null,null,null,null,null,null,"Juli"]
[null,null,null,null,null,null,"August"]
[null,null,null,null,null,null,"September"]
[null,null,null,null,null,null,"Oktober"]
[null,null,null,null,null,null,"November"]
[null,null,null,null,null,null,"Dezember"]
[null,null,null,null,null,null,"TOTAL",{"$f":"SUM(H53:H64)","v":0},{"$f":"SUM(I53:I64)","v":0}]
[]
["Die maximale Entschädigung über das Härtefallprogramm 2020 Verlängerung beträgt 20 % (inklusive bereits erhaltener Verfügungen) des durchschnittlichen Jahresumsatzes aus den Jahren 2018 und 2019."]